bitfinex/quotes_BTCUSD_20241124
["timestamp","ask_amount","ask_price","bid_price","bid_amount"]
[1732439310898,0.0018589,97971.0,97970.0,0.04809547]
[1732439314235,0.0018589,97971.0,97970.0,0.04809865]
[1732439317604,0.0008584,97974.0,97970.0,0.04809865]
[1732439317860,0.0008584,97974.0,97970.0,0.00232849]
[1732439318119,0.0008584,97974.0,97971.0,0.0457828]
[1732439318375,0.0008584,97974.0,97972.0,0.01761113]
[1732439318636,0.0008584,97974.0,97972.0,0.04811772]
[1732439318880,0.0008584,97974.0,97973.0,0.04578911]
[1732439319374,0.0008584,97974.0,97973.0,0.0481176]
[1732439320074,0.0466584,97974.0,97973.0,0.0481176]
[1732439320304,0.1287584,97974.0,97973.0,0.0481176]
[1732439320530,0.1287584,97974.0,97973.0,0.04578911]
[1732439320754,0.1287584,97974.0,97956.0,0.04428561]
[1732439320998,0.1287584,97974.0,97973.0,0.00233186]
[1732439321228,0.1287584,97974.0,97955.0,0.0843178]
[1732439321460,0.1287584,97974.0,97956.0,0.00233385]
[1732439323465,0.1287584,97974.0,97962.0,0.0017178]
[1732439326640,0.1287584,97974.0,97963.0,0.03517539]
[1732439326860,0.1287584,97974.0,97964.0,0.0375083]
[1732439327082,0.1287584,97974.0,97965.0,0.03517539]
[1732439327555,0.1287584,97974.0,97966.0,0.03750807]
[1732439327762,0.1287584,97974.0,97966.0,0.00233268]
[1732439328153,0.1287584,97974.0,97962.0,0.0017178]
[1732439331635,0.1287584,97974.0,97963.0,0.02816016]
[1732439331868,0.1287584,97974.0,97964.0,0.03049154]
[1732439332084,0.1287584,97974.0,97965.0,0.02816043]
[1732439332290,0.1287584,97974.0,97964.0,0.00233138]
[1732439332291,0.1287584,97974.0,97966.0,0.02816043]
[1732439332522,0.1287584,97974.0,97967.0,0.02816043]
[1732439332523,0.0821,97974.0,97967.0,0.02816043]
[1732439332736,0.0821,97974.0,97968.0,0.04576085]
[1732439332942,0.0821,97974.0,97969.0,0.04576085]
[1732439333145,0.0821,97974.0,97970.0,0.04576085]
[1732439333367,0.0821,97974.0,97971.0,0.04576085]
[1732439333599,0.0821,97974.0,97972.0,0.04576168]
[1732439333873,0.0821,97974.0,97973.0,0.04576168]
[1732439334284,0.0821,97974.0,97973.0,0.04809201]
[1732439334903,0.5337,97985.0,97973.0,0.04809201]
[1732439335093,0.023,97982.0,97974.0,0.04576168]
[1732439335351,0.023,97982.0,97975.0,0.04576168]
[1732439335562,0.023,97982.0,97976.0,0.0281611]
[1732439335767,0.023,97982.0,97977.0,0.04576168]
[1732439335975,0.023,97982.0,97978.0,0.04576168]
[1732439336228,0.023,97982.0,97979.0,0.04576168]
[1732439336412,0.023,97982.0,97980.0,0.04576168]
[1732439336670,0.023,97982.0,97981.0,0.04576168]
[1732439337158,0.1289,97983.0,97981.0,0.04576168]
[1732439337536,0.1519,97983.0,97982.0,0.04576168]
[1732439340849,0.1519,97983.0,97967.0,0.15]
[1732439341053,0.1519,97983.0,97968.0,0.01972994]
[1732439341257,0.023,97982.0,97969.0,0.04523458]
[1732439341457,0.023,97982.0,97970.0,0.0452369]
[1732439341664,0.023,97982.0,97971.0,0.01739873]
[1732439341864,0.023,97982.0,97972.0,0.04523641]
[1732439342065,0.023,97982.0,97973.0,0.02783787]
[1732439342278,0.023,97982.0,97972.0,0.00233196]
[1732439342499,0.023,97982.0,97974.0,0.00233173]
[1732439342705,0.023,97982.0,97975.0,0.02783776]
[1732439342850,0.023,97982.0,97976.0,0.04523623]
[1732439343057,0.023,97982.0,97977.0,0.01739847]
[1732439343284,0.023,97982.0,97978.0,0.04523664]
[1732439343484,0.023,97982.0,97979.0,0.04523657]
[1732439343691,0.023,97982.0,97980.0,0.04523657]
[1732439343940,0.023,97982.0,97981.0,0.04523657]
[1732439347592,0.023,97982.0,97981.0,0.04523693]
[1732439348931,0.1289,97983.0,97981.0,0.04523693]
[1732439349108,0.1289,97983.0,97982.0,0.02783819]
[1732439349350,0.1289,97983.0,97982.0,0.04523693]
[1732439351115,0.1289,97983.0,97979.0,0.04170188]
[1732439351335,0.1289,97983.0,97980.0,0.04523577]
[1732439351545,0.1289,97983.0,97981.0,0.04523577]
[1732439351747,0.1289,97983.0,97982.0,0.08003299]
[1732439353826,0.0811,97983.0,97982.0,0.04523577]
[1732439357458,0.0811,97983.0,97982.0,0.08621647]
[1732439358327,0.5337,97985.0,97982.0,0.08621647]
[1732439358520,0.5337,97985.0,97983.0,0.04523577]
[1732439358719,0.5337,97985.0,97984.0,0.04523577]
[1732439360959,0.5451325,97986.0,97984.0,0.04523577]
[1732439361184,0.5451325,97986.0,97975.0,0.0497]
[1732439361185,0.5451325,97986.0,97985.0,0.04523577]
[1732439363902,0.0114325,97986.0,97985.0,0.04523577]
[1732439365753,0.0114325,97986.0,97982.0,0.0017174]
[1732439366043,0.0114325,97986.0,97983.0,0.04478731]
[1732439366394,0.0114325,97986.0,97984.0,0.04478731]
[1732439366597,0.0114325,97986.0,97985.0,0.04478731]
[1732439366920,0.5337,97990.0,97985.0,0.04478731]
[1732439367121,0.5337,97990.0,97986.0,0.04478731]
[1732439367374,0.5337,97990.0,97987.0,0.04478731]
[1732439367719,0.5337,97990.0,97988.0,0.04478731]
[1732439367933,0.5337,97990.0,97989.0,0.04478731]
[1732439369575,0.5337,97990.0,97989.0,0.04478244]
[1732439369798,0.65924145,97991.0,97989.0,0.04478244]
[1732439370043,0.65924145,97991.0,97990.0,0.04478244]
[1732439373215,0.65924145,97991.0,97990.0,0.04478065]
[1732439373573,0.5337,97991.0,97990.0,0.04478065]
[1732439374173,0.5345587,97991.0,97990.0,0.04478065]
[1732439375980,0.8806587,97991.0,97990.0,0.04478065]
[1732439376197,0.8826587,97991.0,97990.0,0.04478065]
[1732439380698,0.2,97984.0,97982.0,0.0017174]
[1732439380905,0.2,97984.0,97983.0,0.04456057]
[1732439381259,0.2,97984.0,97983.0,0.04679643]
[1732439381830,0.7337,97984.0,97983.0,0.04679643]
[1732439382032,0.7337,97984.0,97983.0,0.04456057]
[1732439386069,0.7357,97984.0,97983.0,0.04456057]
[1732439386282,0.7357,97984.0,97983.0,0.04627797]
[1732439387066,0.7337,97984.0,97983.0,0.04627797]
[1732439388156,0.7337,97984.0,97983.0,0.0017174]
[1732439388354,0.7337,97984.0,97983.0,0.04627769]
[1732439388537,0.7327,97984.0,97983.0,0.04627769]
[1732439391331,0.7557,97984.0,97983.0,0.01885481]
[1732439391538,0.7557,97984.0,97983.0,0.0462749]
[1732439392853,0.7577,97984.0,97983.0,0.0462749]
[1732439394274,0.8332,97984.0,97983.0,0.0462749]
[1732439395809,0.8332,97984.0,97983.0,0.04627154]
[1732439396460,0.8814,97984.0,97983.0,0.04627154]
[1732439396729,0.8332,97984.0,97983.0,0.04627154]
[1732439396999,0.8312,97984.0,97983.0,0.04627154]
[1732439398131,0.8302,97984.0,97983.0,0.04627154]
[1732439398885,0.8784,97984.0,97983.0,0.04627154]
[1732439399141,1.00594145,97984.0,97983.0,0.04627154]
[1732439399392,1.00594145,97984.0,97983.0,0.07368366]
[1732439399688,1.00594145,97984.0,97983.0,0.04627154]
[1732439403263,1.04716335,97984.0,97983.0,0.04627154]
[1732439405817,1.04716335,97984.0,97983.0,0.0017174]
[1732439406073,1.04716335,97984.0,97983.0,0.0460678]
[1732439407323,1.04716335,97984.0,97983.0,0.08018256]
[1732439409636,1.04716335,97984.0,97983.0,0.08016825]
[1732439409841,1.04802205,97984.0,97983.0,0.08016825]
[1732439410245,1.04802205,97984.0,97983.0,0.0017174]
[1732439410671,1.04802205,97984.0,97983.0,0.08016814]
[1732439411343,1.04802205,97984.0,97983.0,0.1074552]
[1732439412644,1.04802205,97984.0,97983.0,0.08016814]
[1732439413565,1.04802205,97984.0,97983.0,0.10745242]
[1732439414223,1.15502205,97984.0,97983.0,0.10745242]
[1732439414441,0.223,97970.0,97969.0,0.0017176]
[1732439416174,0.34854145,97970.0,97969.0,0.0017176]
[1732439418035,0.77307163,97970.0,97969.0,0.0017176]
[1732439423248,0.77107163,97970.0,97969.0,0.0017176]
[1732439424401,0.77307163,97970.0,97969.0,0.02898939]
[1732439425258,0.64753018,97970.0,97969.0,0.02898939]
[1732439425460,0.77307163,97970.0,97969.0,0.02898939]
[1732439426247,0.77307163,97970.0,97969.0,0.04580394]
[1732439426567,0.77307163,97970.0,97969.0,0.01853215]
[1732439430228,0.002,97960.0,97944.0,0.04067213]
[1732439430462,0.42453018,97959.0,97904.0,0.002]
[1732439430669,0.42453018,97959.0,97930.0,0.07445855]
[1732439431701,0.198,97956.0,97931.0,0.02691804]
[1732439431903,0.198,97951.0,97931.0,0.02691804]
[1732439432106,0.198,97951.0,97932.0,0.02691804]
[1732439432310,0.198,97951.0,97933.0,0.02691804]
[1732439432515,0.198,97951.0,97932.0,0.00274975]
[1732439432722,0.198,97951.0,97934.0,0.00274954]
[1732439432897,0.198,97951.0,97933.0,0.00274985]
[1732439433097,0.198,97951.0,97934.0,0.1988]
[1732439433457,0.198,97951.0,97935.0,0.00274974]
[1732439433666,0.023,97950.0,97935.0,0.00274974]
[1732439436031,0.42453018,97949.0,97935.0,0.00274974]
[1732439438986,0.42453018,97948.0,97935.0,0.00274974]
[1732439441907,0.42453018,97947.0,97935.0,0.00274974]
[1732439442133,0.42453018,97947.0,97936.0,0.01679006]
[1732439442332,0.42453018,97947.0,97937.0,0.01954769]
[1732439442542,0.42453018,97947.0,97938.0,0.01679006]
[1732439442752,0.42453018,97947.0,97939.0,0.01679006]
[1732439442953,0.42453018,97947.0,97940.0,0.01679006]
[1732439443183,0.42453018,97947.0,97941.0,0.01679006]
[1732439443413,0.42453018,97947.0,97942.0,0.01679006]
[1732439443660,0.42453018,97947.0,97943.0,0.01679006]
[1732439443916,0.42453018,97947.0,97944.0,0.01679006]
[1732439444151,0.42453018,97947.0,97945.0,0.01679659]
[1732439444375,0.42453018,97947.0,97946.0,0.01679659]
[1732439448874,0.42453018,97947.0,97946.0,0.05827532]
[1732439449210,0.42453018,97947.0,97946.0,0.01679659]
[1732439449411,0.42453018,97947.0,97946.0,0.06589659]
[1732439449884,0.42453018,97947.0,97946.0,0.06865274]
[1732439450304,0.42453018,97947.0,97946.0,0.06865469]
[1732439451057,0.000859,97951.0,97946.0,0.06865469]
[1732439451262,0.000859,97951.0,97947.0,0.01679854]
[1732439451465,0.000859,97951.0,97948.0,0.01679854]
[1732439451671,0.000859,97951.0,97949.0,0.01679854]
[1732439451895,0.000859,97951.0,97948.0,0.00275635]
[1732439451896,0.000859,97951.0,97950.0,0.01679854]
[1732439452052,0.000859,97951.0,97950.0,0.01955469]
[1732439453397,0.000859,97951.0,97950.0,0.00275615]
[1732439453822,0.000859,97951.0,97950.0,0.01678479]
[1732439454027,0.000859,97951.0,97950.0,0.01954094]
[1732439454856,0.000859,97951.0,97950.0,0.00275615]
[1732439455279,0.000859,97951.0,97946.0,0.09146759]
[1732439455497,0.000859,97951.0,97950.0,0.00266361]
[1732439455702,0.000859,97951.0,97946.0,0.09146759]
[1732439455917,0.000859,97951.0,97950.0,0.00266361]
[1732439456113,0.000859,97951.0,97946.0,0.04236759]
[1732439456337,0.000859,97951.0,97950.0,0.00266361]
[1732439456590,0.000859,97951.0,97942.0,0.0491]
[1732439456997,0.000859,97951.0,97943.0,0.00266434]
[1732439457410,0.000859,97951.0,97942.0,0.0491]
[1732439458096,0.000859,97951.0,97934.0,0.15]
[1732439458097,0.000859,97951.0,97934.0,0.14187103]
[1732439458309,0.000859,97951.0,97933.0,0.0782174]
[1732439458455,0.000859,97951.0,97935.0,0.00265075]
[1732439458663,0.000859,97951.0,97934.0,0.00265085]
[1732439458878,0.000859,97951.0,97936.0,0.00265064]
[1732439459088,0.000859,97951.0,97935.0,0.00265075]
[1732439459286,0.000859,97951.0,97937.0,0.00265054]
[1732439459497,0.000859,97951.0,97936.0,0.00265064]
[1732439459752,0.000859,97951.0,97938.0,0.00265044]
[1732439459969,0.000859,97951.0,97937.0,0.00265054]
[1732439460147,0.000859,97951.0,97939.0,0.00265033]
[1732439460385,0.000859,97951.0,97938.0,0.00265044]
[1732439460596,0.000859,97951.0,97940.0,0.00265023]
[1732439460822,0.000859,97951.0,97939.0,0.00265033]
[1732439461051,0.000859,97951.0,97941.0,0.00265012]
[1732439461213,0.000859,97951.0,97940.0,0.00265023]
[1732439461476,0.000859,97951.0,97936.0,0.0457]
[1732439461645,0.000859,97951.0,97941.0,0.00265012]
[1732439461911,0.000859,97951.0,97936.0,0.0457]
[1732439462359,0.000859,97951.0,97937.0,0.00265054]
[1732439462918,0.0496,97950.0,97937.0,0.00265054]
[1732439467768,0.0496,97950.0,97934.0,0.15]
[1732439468005,0.0496,97950.0,97935.0,0.00264988]
[1732439471995,0.0496,97950.0,97935.0,0.00436788]
[1732439472725,0.0496,97950.0,97936.0,0.00264848]
[1732439472985,0.000859,97951.0,97936.0,0.00264848]
[1732439473195,0.000859,97951.0,97933.0,0.11992771]
[1732439473196,0.000859,97951.0,97938.0,0.08]
[1732439473657,0.000859,97951.0,97939.0,0.00255994]
[1732439476775,0.000859,97951.0,97937.0,0.0457]
[1732439477045,0.000859,97951.0,97938.0,0.00238282]
[1732439477960,0.000859,97951.0,97939.0,0.01677399]
[1732439478220,0.000859,97951.0,97940.0,0.01677399]
[1732439478434,0.000859,97951.0,97941.0,0.01677399]
[1732439478674,0.000859,97951.0,97942.0,0.01677399]
[1732439478880,0.000859,97951.0,97943.0,0.01677399]
[1732439479365,0.000859,97951.0,97944.0,0.01915619]
[1732439479658,0.000859,97951.0,97945.0,0.01677399]
[1732439479927,0.000859,97951.0,97946.0,0.01677399]
[1732439480143,0.082959,97951.0,97947.0,0.01677399]
[1732439480374,0.082959,97951.0,97948.0,0.01677399]
[1732439480605,0.082959,97951.0,97949.0,0.01677399]
[1732439480862,0.082959,97951.0,97950.0,0.01677399]
[1732439481080,0.082959,97951.0,97950.0,0.01915556]
[1732439481301,0.082959,97951.0,97950.0,0.00238157]
[1732439481528,0.082959,97951.0,97950.0,0.01915267]
[1732439481764,0.082959,97951.0,97950.0,0.0167711]
[1732439481999,0.082959,97951.0,97950.0,0.01915111]
[1732439484364,0.082959,97951.0,97950.0,0.00238001]
[1732439484631,0.082959,97951.0,97950.0,0.0191491]
[1732439484856,0.082959,97951.0,97950.0,0.01964779]
[1732439486012,0.082959,97951.0,97950.0,0.04647808]
[1732439487154,0.03716308,97951.0,97950.0,0.04647808]
[1732439488243,0.03716308,97951.0,97950.0,0.01964779]
[1732439488470,0.0496,97960.0,97950.0,0.01964779]
[1732439488678,0.0496,97960.0,97951.0,0.01676909]
[1732439488892,0.0496,97960.0,97952.0,0.01676909]
[1732439489109,0.0496,97960.0,97953.0,0.01676909]
[1732439489321,0.0496,97960.0,97954.0,0.01676909]
[1732439489495,0.0496,97960.0,97955.0,0.01676909]
[1732439489705,0.0496,97960.0,97954.0,0.00288037]
[1732439489706,0.0496,97960.0,97956.0,0.01676909]
[1732439489954,0.0496,97960.0,97957.0,0.01676909]
[1732439490129,0.0791,97959.0,97958.0,0.01676909]
[1732439490332,0.1278,97973.0,97958.0,0.01965161]
[1732439490578,0.0487,97978.0,97959.0,0.06636909]
[1732439490732,0.0487,97978.0,97960.0,0.01676909]
[1732439490939,0.0487,97978.0,97961.0,0.01676909]
[1732439491167,0.0487,97978.0,97962.0,0.01676909]
[1732439491335,0.0487,97978.0,97963.0,0.01676909]
[1732439491571,0.0487,97978.0,97964.0,0.01676909]
[1732439491793,0.0487,97978.0,97965.0,0.01964196]
[1732439491989,0.0487,97978.0,97966.0,0.01675763]
[1732439492191,0.0487,97978.0,97967.0,0.01675763]
[1732439492402,0.0487,97978.0,97968.0,0.01675763]
[1732439492622,0.0487,97978.0,97969.0,0.01675763]
[1732439492822,0.0487,97978.0,97970.0,0.01675763]
[1732439493073,0.0487,97978.0,97971.0,0.01675763]
[1732439493283,0.0487,97978.0,97972.0,0.01668713]
[1732439493486,0.0487,97978.0,97959.0,0.0496]
[1732439493864,0.0487,97978.0,97960.0,0.00288524]
[1732439497046,0.0495589,97978.0,97960.0,0.00288524]
[1732439502596,0.0008589,97978.0,97967.0,0.07445855]
[1732439503063,0.0008589,97978.0,97968.0,0.00288432]
[1732439504222,0.0008589,97978.0,97969.0,0.02657819]
[1732439504470,0.0008589,97978.0,97970.0,0.07617819]
[1732439504693,0.0008589,97978.0,97971.0,0.02657819]
[1732439504945,0.0008589,97978.0,97972.0,0.10103674]
[1732439505166,0.0008587,97982.0,97973.0,0.17657819]
[1732439505385,0.0008587,97982.0,97975.0,0.22445855]
[1732439505593,0.0008587,97982.0,97976.0,0.26764138]
[1732439505809,0.0008587,97982.0,97977.0,0.19318283]
[1732439506027,0.0008587,97982.0,97978.0,0.04318283]
[1732439506240,0.0008587,97982.0,97979.0,0.04318283]
[1732439506463,0.0008587,97982.0,97980.0,0.04318283]
[1732439506734,0.0008587,97982.0,97981.0,0.04318283]
[1732439507198,0.0008587,97982.0,97981.0,0.04605346]
[1732439508272,0.0008587,97982.0,97981.0,0.02942375]
[1732439508491,0.0008587,97982.0,97981.0,0.04601927]
[1732439508717,0.0008587,97982.0,97981.0,0.32007782]
[1732439509811,0.0008587,97982.0,97981.0,0.32207782]
[1732439510291,0.0008587,97982.0,97981.0,0.39837782]
[1732439512335,0.0008587,97982.0,97981.0,0.39833358]
[1732439515393,0.0008587,97982.0,97981.0,0.32203358]
[1732439515636,0.0008587,97982.0,97981.0,0.0451044]
[1732439515858,0.0008587,97982.0,97981.0,0.0480896]
[1732439516516,0.0008587,97982.0,97981.0,0.04808093]
[1732439517192,0.00065434,97982.0,97981.0,0.04808093]
[1732439518616,0.00065434,97982.0,97981.0,0.09618093]
[1732439520239,0.00065434,97982.0,97981.0,0.09617292]
[1732439520686,0.00065434,97982.0,97981.0,0.04807292]
[1732439522597,0.00065434,97982.0,97981.0,0.0464445]
[1732439523788,0.00065434,97982.0,97981.0,0.02987241]
[1732439523996,0.00065434,97982.0,97981.0,0.04645907]
[1732439525052,0.00065434,97982.0,97981.0,0.04817627]
[1732439525758,0.0797,97993.0,97981.0,0.04817627]
[1732439525981,0.0797,97993.0,97982.0,0.04310743]
[1732439526205,0.0797,97993.0,97983.0,0.02754823]
[1732439526419,0.0797,97993.0,97983.0,0.04711627]
[1732439526630,0.0797,97993.0,97984.0,0.04310919]
[1732439526843,0.0797,97993.0,97990.0,0.15]
[1732439527061,0.0486,97992.0,97991.0,0.04310919]
[1732439527279,0.0486,97992.0,97991.0,0.0460978]
[1732439529465,0.0486,97992.0,97991.0,0.00298861]
[1732439529715,0.0486,97992.0,97991.0,0.04612265]
[1732439529954,0.0486,97992.0,97991.0,0.04313404]
[1732439530178,0.0486,97992.0,97991.0,0.04612072]
[1732439530657,0.0486,97992.0,97991.0,0.08845213]
[1732439533561,0.0486,97992.0,97991.0,0.08851429]
[1732439533985,0.0486,97992.0,97991.0,0.04531809]
[1732439534260,0.0486,97992.0,97991.0,0.08851429]
[1732439534485,0.0486,97992.0,97991.0,0.08854004]
[1732439535340,0.0486,97992.0,97991.0,0.04620863]
[1732439536684,0.0486,97992.0,97991.0,0.01961039]
[1732439537593,0.0486,97992.0,97981.0,0.0017172]
[1732439537822,0.0486,97992.0,97991.0,0.00298202]
[1732439538054,0.0486,97992.0,97991.0,0.01663396]
[1732439538281,0.0486,97992.0,97991.0,0.01961598]
[1732439538942,0.0494586,97992.0,97991.0,0.01961598]
[1732439539374,0.0494586,97992.0,97991.0,0.01663396]
[1732439539584,0.0494586,97992.0,97991.0,0.01961598]
[1732439539803,0.0494586,97992.0,97991.0,0.01663396]
[1732439540192,0.0494586,97992.0,97991.0,0.01961284]
[1732439540808,0.0494586,97992.0,97991.0,0.01663396]
[1732439541047,0.0494586,97992.0,97991.0,0.01961284]
[1732439541300,0.0494586,97992.0,97991.0,0.01961359]
[1732439541725,0.0494586,97992.0,97991.0,0.01663471]
[1732439542152,0.0494586,97992.0,97991.0,0.01961359]
[1732439543050,0.0494586,97992.0,97991.0,0.01663471]
[1732439543751,0.0494586,97992.0,97991.0,0.01961359]
[1732439544237,0.0494586,97992.0,97991.0,0.01663471]
[1732439544714,0.00368489,97992.0,97991.0,0.04325043]
[1732439545002,0.00368489,97992.0,97990.0,0.15]
[1732439545216,0.00368489,97992.0,97991.0,0.04622921]
[1732439545404,0.00368489,97992.0,97991.0,0.0462289]
[1732439548911,0.00368489,97992.0,97991.0,0.04622908]
[1732439551190,0.00368489,97992.0,97991.0,0.04794608]
[1732439552360,0.00368489,97992.0,97991.0,0.03131139]
[1732439552761,0.00368489,97992.0,97991.0,0.04794558]
[1732439553163,0.00368489,97992.0,97991.0,0.02133007]
[1732439556237,0.00368489,97992.0,97991.0,0.02132976]
[1732439556701,0.00368489,97992.0,97991.0,0.02132974]
[1732439559515,0.00368489,97992.0,97991.0,0.00297728]
[1732439559963,0.00368489,97992.0,97960.0,0.15]
[1732439559964,0.00368489,97992.0,97970.0,0.0403896]
[1732439560247,0.00368489,97992.0,97971.0,0.00102048]
[1732439560467,0.00368489,97992.0,97971.0,0.00400156]
[1732439562240,0.00368489,97992.0,97971.0,0.00298108]
[1732439562505,0.00368489,97992.0,97991.0,0.001717]
[1732439569571,0.00368489,97992.0,97991.0,0.04343281]
[1732439569781,0.00368489,97992.0,97991.0,0.00469496]
[1732439570197,0.00368489,97992.0,97991.0,0.001717]
[1732439571333,0.00368489,97992.0,97991.0,0.01825421]
[1732439571600,0.00368489,97992.0,97991.0,0.02123217]
[1732439572365,0.00368489,97992.0,97991.0,0.02123265]
[1732439574031,0.00368489,97992.0,97991.0,0.02123318]
[1732439574873,0.00368489,97992.0,97991.0,0.06261021]
[1732439575086,0.00368489,97992.0,97991.0,0.02123318]
[1732439576995,0.08468489,97992.0,97991.0,0.02123318]
[1732439577414,0.08468489,97992.0,97991.0,0.06009084]
[1732439577630,0.08468489,97992.0,97991.0,0.01825522]
[1732439577829,0.08468489,97992.0,97991.0,0.02123265]
[1732439578048,0.08468489,97992.0,97991.0,0.0476878]
[1732439578679,0.08468489,97992.0,97991.0,0.08848418]
[1732439581260,0.08468489,97992.0,97991.0,0.08834329]
[1732439586978,0.08468489,97992.0,97991.0,0.04549081]
[1732439587192,0.08468489,97992.0,97991.0,0.08831631]
[1732439588050,0.08468489,97992.0,97991.0,0.06196204]
[1732439590876,0.08668489,97992.0,97991.0,0.06196204]
[1732439591082,0.08668489,97992.0,97991.0,0.05898461]
[1732439591306,0.08468489,97992.0,97991.0,0.06180532]
[1732439592152,0.08468489,97992.0,97991.0,0.08815193]
[1732439594381,0.08468489,97992.0,97991.0,0.08814046]
[1732439597446,0.28468489,97992.0,97991.0,0.04734408]
[1732439597892,0.28468489,97992.0,97991.0,0.04452337]
[1732439601426,0.28468489,97992.0,97991.0,0.02804884]
[1732439601603,0.28468489,97992.0,97991.0,0.04450605]
[1732439602486,0.10768489,97992.0,97991.0,0.04450605]
[1732439609460,0.30768489,97992.0,97991.0,0.04450605]
[1732439610130,0.10768489,97992.0,97991.0,0.04450605]
[1732439612336,0.10768489,97992.0,97991.0,0.04453939]
[1732439613296,0.10768489,97992.0,97991.0,0.01818703]
[1732439614463,0.30768489,97992.0,97991.0,0.01818703]
[1732439615616,0.30768489,97992.0,97991.0,0.01815285]
[1732439619362,0.30768489,97992.0,97991.0,0.001717]
[1732439621490,0.30768489,97992.0,97991.0,0.01815739]
[1732439622542,0.30768489,97992.0,97991.0,0.001717]
[1732439629439,0.30768489,97992.0,97991.0,0.01816025]
[1732439632508,0.30768489,97992.0,97991.0,0.001717]
[1732439634558,0.30768489,97992.0,97991.0,0.0181602]
[1732439640024,0.2,97988.0,97961.0,0.01661266]
[1732439640260,0.02427588,97987.0,97961.0,0.01763337]
[1732439642341,0.02427588,97987.0,97961.0,0.20898093]
[1732439642588,0.02427588,97987.0,97970.0,0.0017184]
[1732439643084,0.02427588,97987.0,97971.0,0.0453]
[1732439643085,0.00127588,97987.0,97971.0,0.0453]
[1732439643300,0.223,97991.0,97971.0,0.0453]
[1732439643301,0.00127586,97990.0,97975.0,0.15]
[1732439643515,0.023,97991.0,97975.0,0.15]
[1732439643516,0.0012758,97989.0,97975.0,0.15]
[1732439643754,0.00127578,97988.0,97976.0,0.00282197]
[1732439643984,0.00127578,97987.0,97976.0,0.00282197]
[1732439644209,0.00127578,97990.0,97976.0,0.00282197]
[1732439644681,0.00127578,97990.0,97977.0,0.00282181]
[1732439644894,0.00127578,97990.0,97972.0,0.15]
[1732439645122,0.00127578,97990.0,97978.0,0.00282166]
[1732439645364,0.00127578,97990.0,97972.0,0.15]
[1732439645609,0.00127578,97990.0,97979.0,0.0028215]
[1732439645834,0.00127578,97990.0,97972.0,0.15]
[1732439646057,0.00127578,97990.0,97980.0,0.00282134]
[1732439646285,0.00127578,97990.0,97972.0,0.15]
[1732439646511,0.00127578,97990.0,97981.0,0.00282119]
[1732439646707,0.00127578,97990.0,97972.0,0.1917841]
[1732439647217,0.00127578,97990.0,97973.0,0.00282244]
[1732439649111,0.00833072,97981.0,97949.0,0.15]
[1732439649329,0.00833072,97986.0,97974.0,0.00267076]
[1732439649552,0.00833072,97981.0,97950.0,0.00102063]
[1732439650037,0.00833072,97981.0,97951.0,0.0026715]
[1732439650258,0.00833072,97981.0,97952.0,0.00102063]
[1732439650485,0.00833072,97981.0,97952.0,0.00369198]
[1732439651800,0.00833072,97981.0,97977.0,0.15]
[1732439652042,0.00833072,97981.0,97978.0,0.0163986]
[1732439652250,0.00833072,97981.0,97979.0,0.0163986]
[1732439652475,0.00833072,97981.0,97980.0,0.0163986]
[1732439652722,0.00833072,97981.0,97980.0,0.01906558]
[1732439655055,0.08933072,97982.0,97980.0,0.0163986]
[1732439655474,0.08933072,97982.0,97981.0,0.0163986]
[1732439656220,0.08933072,97982.0,97981.0,0.01906558]
[1732439656676,0.08933072,97982.0,97981.0,0.00266698]
[1732439656905,0.08933072,97982.0,97967.0,0.0029]
[1732439657133,0.081,97982.0,97967.0,0.0029]
[1732439657634,0.081,97982.0,97977.0,0.15]
[1732439657635,0.08933072,97982.0,97977.0,0.15]
[1732439658160,0.08933072,97982.0,97978.0,0.00266744]
[1732439658635,0.08933072,97982.0,97967.0,0.0029]
[1732439658868,0.08933072,97982.0,97977.0,0.15]
[1732439659112,0.08933072,97982.0,97978.0,0.0163957]
[1732439659333,0.08933072,97982.0,97979.0,0.0163957]
[1732439659561,0.08933072,97982.0,97980.0,0.0163957]
[1732439659775,0.08933072,97982.0,97981.0,0.0163957]
[1732439661209,0.08933072,97982.0,97981.0,0.01906268]
[1732439661669,0.08933072,97982.0,97977.0,0.15]
[1732439661863,0.08933072,97982.0,97981.0,0.00266698]
[1732439662203,0.08933072,97982.0,97977.0,0.15]
[1732439662427,0.08933072,97982.0,97981.0,0.00266698]
[1732439662663,0.08933072,97982.0,97981.0,0.01904984]
[1732439662869,0.08933072,97982.0,97981.0,0.01638286]
[1732439664295,0.08933072,97982.0,97981.0,0.00266698]
[1732439664543,0.08933072,97982.0,97950.0,0.002]
[1732439664764,0.08933072,97982.0,97952.0,0.0428599]
[1732439664992,0.08933072,97982.0,97953.0,0.00267135]
[1732439667542,0.08933072,97982.0,97971.0,0.15]
[1732439668012,0.08933072,97982.0,97972.0,0.00266838]
[1732439668451,0.08933072,97982.0,97952.0,0.04320289]
[1732439668452,0.09019012,97982.0,97952.0,0.04320289]
[1732439668720,0.09019012,97982.0,97973.0,0.00266822]
[1732439668952,0.09019012,97982.0,97952.0,0.0037186]
[1732439669184,0.09019012,97982.0,97952.0,0.0017186]
[1732439669425,0.09019012,97982.0,97953.0,0.00267135]
[1732439669903,0.09019012,97982.0,97977.0,0.15]
[1732439670121,0.09019012,97982.0,97953.0,0.00267135]
[1732439670334,0.0496,97981.0,97978.0,0.00267036]
[1732439670564,0.0496,97981.0,97952.0,0.0037186]
[1732439670781,0.0496,97981.0,97952.0,0.04511]
[1732439671004,0.0496,97981.0,97953.0,0.0026741]
[1732439671610,0.0496,97981.0,97977.0,0.15]
[1732439671829,0.0496,97981.0,97954.0,0.00267395]
[1732439671997,0.002,97977.0,97949.0,0.15]
[1732439672209,0.002,97977.0,97948.0,0.19166928]
[1732439672621,0.002,97977.0,97948.0,0.23233756]
[1732439673409,0.0496,97976.0,97948.0,0.23233756]
[1732439674017,0.0496,97976.0,97948.0,0.38233756]
[1732439674422,0.0496,97976.0,97948.0,0.19066828]
[1732439674688,0.0798,97975.0,97948.0,0.38233756]
[1732439676212,0.0798,97975.0,97966.0,0.15]
[1732439676436,0.0798,97975.0,97967.0,0.01639189]
[1732439676648,0.0798,97975.0,97968.0,0.01639189]
[1732439676834,0.0798,97975.0,97948.0,0.38233756]
[1732439677445,0.0798,97975.0,97948.0,0.19066828]
[1732439677670,0.0798,97975.0,97948.0,0.38233756]
[1732439678538,0.0496,97974.0,97948.0,0.38233756]
[1732439678746,0.0516,97974.0,97948.0,0.38233756]
[1732439679589,0.0516,97974.0,97949.0,0.00253633]
[1732439681324,0.045,97970.0,97949.0,0.00253633]